bitfinex/quotes_SOLUSD_20250118
["timestamp","ask_amount","ask_price","bid_price","bid_amount"]
[1737192229745,32.51022809,239.43,239.37,20.03]
[1737192229928,23.776884,239.42,239.37,20.03]
[1737192230445,23.776884,239.4,239.37,20.03]
[1737192230929,32.51022809,239.47,239.39,20.0]
[1737192231725,32.51022809,239.47,239.41,20.0]
[1737192232016,32.51022809,239.51,239.45,20.0]
[1737192232218,32.51022809,239.47,239.38,32.51022809]
[1737192232913,32.51022809,239.49,239.43,20.0]
[1737192233127,9.146,239.6,239.45,20.0]
[1737192233128,32.51022809,239.52,239.45,20.0]
[1737192233313,32.51022809,239.54,239.49,20.0]
[1737192234136,9.92883172,239.6,239.51,8.410233]
[1737192234137,33.29305981,239.6,239.51,8.410233]
[1737192234433,32.51022809,239.66,239.58,32.51022809]
[1737192234747,32.51022809,239.62,239.54,32.51022809]
[1737192235234,32.51022809,239.69,239.6,32.51022809]
[1737192235439,32.51022809,239.71,239.64,32.51022809]
[1737192235736,23.776884,239.7,239.64,32.51022809]
[1737192235945,32.51022809,239.71,239.64,32.51022809]
[1737192236531,23.776884,239.7,239.62,32.51022809]
[1737192236831,32.51022809,239.71,239.62,32.51022809]
[1737192237046,32.51022809,239.65,239.48,0.31596238]
[1737192237255,32.51022809,239.61,239.53,32.51022809]
[1737192237430,32.51022809,239.65,239.57,32.51022809]
[1737192237626,32.51022809,239.67,239.57,32.51022809]
[1737192238242,32.51022809,239.74,239.66,32.51022809]
[1737192238425,32.51022809,239.74,239.64,32.51022809]
[1737192238824,23.776884,239.71,239.64,32.51022809]
[1737192239542,23.776884,239.71,239.62,37.73022809]
[1737192239931,32.51022809,239.78,239.71,20.0]
[1737192240238,32.51022809,239.76,239.71,20.0]
[1737192240543,32.51022809,239.72,239.64,32.51022809]
[1737192240740,23.776884,239.71,239.62,37.73022809]
[1737192240920,32.51022809,239.72,239.62,37.73022809]
[1737192241116,32.51022809,239.72,239.67,20.0]
[1737192242142,32.51022809,239.74,239.66,32.51022809]
[1737192242340,32.51022809,239.76,239.68,32.51022809]
[1737192242539,32.51022809,239.74,239.66,32.51022809]
[1737192242748,32.51022809,239.76,239.68,32.51022809]
[1737192242925,32.51022809,239.74,239.71,20.0]
[1737192243124,32.51022809,239.72,239.64,32.51022809]
[1737192243325,32.51022809,239.72,239.67,20.0]
[1737192243834,32.51022809,239.69,239.55,32.51022809]
[1737192244022,32.51022809,239.61,239.53,32.51022809]
[1737192244426,32.51022809,239.59,239.51,32.51022809]
[1737192245036,32.51022809,239.59,239.54,20.0]
[1737192245346,32.51022809,239.59,239.51,32.51022809]
[1737192245847,32.51022809,239.61,239.53,32.51022809]
[1737192246844,23.776884,239.58,239.47,32.51022809]
[1737192247030,2.2208,239.65,239.47,32.51022809]
[1737192247031,32.51022809,239.61,239.51,32.51022809]
[1737192247229,32.51022809,239.61,239.53,32.51022809]
[1737192247621,23.776884,239.58,239.54,20.0]
[1737192248753,24.55960783,239.58,239.4,115.41022809]
[1737192249128,24.55960783,239.58,239.43,20.0]
[1737192249329,32.51022809,239.48,239.37,0.03]
[1737192249530,23.776884,239.47,239.39,32.51022809]
[1737192250259,23.776884,239.45,239.37,0.03]
[1737192250551,32.51022809,239.48,239.41,32.51022809]
[1737192251225,32.51022809,239.48,239.37,0.03]
[1737192251226,32.51022809,239.48,239.42,19.9165]
[1737192251650,32.51022809,239.54,239.45,32.51022809]
[1737192252151,32.51022809,239.52,239.43,32.51022809]
[1737192252543,23.776884,239.51,239.43,32.51022809]
[1737192252848,23.776884,239.49,239.41,32.51022809]
[1737192253253,23.776884,239.47,239.39,32.51022809]
[1737192254141,32.51022809,239.44,239.37,0.03]
[1737192254348,32.51022809,239.44,239.37,32.54022809]
[1737192255178,32.51022809,239.52,239.43,32.51022809]
[1737192255461,4.1738,239.59,239.46,32.51022809]
[1737192255635,32.51022809,239.54,239.46,32.51022809]
[1737192255957,23.776884,239.51,239.44,32.51022809]
[1737192256250,23.776884,239.45,239.37,0.03]
[1737192256435,23.776884,239.38,239.37,0.03]
[1737192256841,32.51022809,239.39,239.37,0.03]
[1737192257356,23.776884,239.38,239.37,0.03]
[1737192258165,27.954284,239.38,239.37,0.03]
[1737192259154,27.954284,239.38,239.33,0.43912]
[1737192259352,56.28711209,239.34,239.33,0.43912]
[1737192259651,57.07085285,239.34,239.33,0.43912]
[1737192260038,61.24895285,239.34,239.33,0.43912]
[1737192260351,20.0,239.31,239.29,0.03]
[1737192260547,89.58124608,239.3,239.29,0.03]
[1737192261254,89.58124608,239.3,238.9,61.776759]
[1737192261255,20.0,239.22,239.13,0.03]
[1737192261456,32.51022809,239.14,239.13,0.03]
[1737192261662,33.29459135,239.14,239.13,0.03]
[1737192261845,32.51022809,239.01,238.93,32.51022809]
[1737192262559,32.51022809,239.01,238.91,32.51022809]
[1737192262742,32.51022809,238.93,238.85,32.51022809]
[1737192262932,32.51022809,238.95,238.85,32.51022809]
[1737192263131,23.776884,238.9,238.68,85.0446]
[1737192263432,0.78469273,239.0,238.77,32.51022809]
[1737192263433,32.51022809,238.85,238.77,32.51022809]
[1737192263636,32.51022809,238.83,238.75,32.51022809]
[1737192263835,32.51022809,238.87,238.79,32.51022809]
[1737192264668,32.51022809,238.85,238.77,32.51022809]
[1737192264859,23.776884,238.84,238.77,32.51022809]
[1737192265654,23.776884,238.84,238.75,32.51022809]
[1737192265940,32.51022809,238.82,238.75,32.51022809]
[1737192266254,33.29523384,238.92,238.69,115.41022809]
[1737192266456,23.776884,238.77,238.69,32.51022809]
[1737192266644,32.51022809,238.72,238.65,32.51022809]
[1737192266849,32.51022809,238.74,238.65,32.51022809]
[1737192267244,32.51022809,238.67,238.58,32.51022809]
[1737192267443,32.51022809,238.69,238.6,32.51022809]
[1737192267671,32.51022809,238.67,238.6,32.51022809]
[1737192268074,32.51022809,238.67,238.58,32.51022809]
[1737192268246,32.51022809,238.65,238.57,4.1916]
[1737192268568,32.51022809,238.61,238.57,4.1916]
[1737192269072,23.776884,238.58,238.52,4.1925]
[1737192269267,32.51022809,238.55,238.52,4.1925]
[1737192269760,23.776884,238.54,238.52,4.1925]
[1737192270349,32.51022809,238.55,238.48,4.1932]
[1737192270645,32.51022809,238.65,238.56,20.0]
[1737192270847,32.51022809,238.67,238.59,32.51022809]
[1737192271043,32.51022809,238.65,238.56,32.51022809]
[1737192271466,32.51022809,238.67,238.61,20.0]
[1737192271674,32.51022809,238.65,238.56,32.51022809]
[1737192271977,32.51022809,238.63,238.56,32.51022809]
[1737192272152,32.51022809,238.63,238.59,20.0]
[1737192272869,32.51022809,238.63,238.51,0.32261196]
[1737192272870,32.51022809,238.65,238.57,20.0]
[1737192273171,32.51022809,238.65,238.58,32.51022809]
[1737192273667,32.51022809,238.68,238.61,20.0]
[1737192273871,32.51022809,238.64,238.55,36.70212809]
[1737192274744,32.51022809,238.64,238.61,0.03]
[1737192274942,32.51022809,238.69,238.64,20.0]
[1737192275562,32.51022809,238.73,238.65,32.51022809]
[1737192275871,32.51022809,238.77,238.69,32.51022809]
[1737192276072,8.9675,238.85,238.73,32.51022809]
[1737192276073,32.51022809,238.81,238.73,32.51022809]
[1737192276250,32.51022809,238.77,238.67,32.51022809]
[1737192276450,32.51022809,238.75,238.65,32.51022809]
[1737192276747,32.51022809,238.75,238.65,32.83207797]
[1737192276947,32.51022809,238.75,238.68,20.0]
[1737192277157,32.51022809,238.71,238.68,20.0]
[1737192277355,4.1856,238.92,238.68,32.51022809]
[1737192277566,32.51022809,238.76,238.66,32.51022809]
[1737192277743,32.51022809,238.74,238.64,37.59022809]
[1737192277944,32.51022809,238.74,238.69,20.0]
[1737192278668,32.51022809,238.72,238.64,32.51022809]
[1737192278871,32.51022809,238.72,238.62,115.41022809]
[1737192279046,32.51022809,238.72,238.64,32.51022809]
[1737192279246,32.51022809,238.7,238.65,20.0]
[1737192280047,32.51022809,238.7,238.62,32.51022809]
[1737192280048,32.51022809,238.75,238.69,20.0]
[1737192280477,32.51022809,238.77,238.69,20.0]
[1737192280659,32.51022809,238.77,238.68,32.51022809]
[1737192280859,32.51022809,238.77,238.71,20.0]
[1737192282174,32.51022809,238.77,238.68,32.51022809]
[1737192282476,32.51022809,238.75,238.68,32.51022809]
[1737192282661,32.51022809,238.75,238.69,20.0]
[1737192283666,32.51022809,238.77,238.71,20.0]
[1737192284048,32.51022809,238.77,238.62,0.32180879]
[1737192284049,32.51022809,238.75,238.66,32.51022809]
[1737192284251,32.51022809,238.79,238.73,20.0]
[1737192284559,23.776884,238.74,238.63,32.51022809]
[1737192284746,32.51022809,238.7,238.63,32.51022809]
[1737192285768,32.51022809,238.7,238.66,20.0]
[1737192285950,32.51022809,238.72,238.66,20.0]
[1737192286148,32.51022809,238.72,238.63,32.51022809]
[1737192286677,32.51022809,238.72,238.66,20.0]
[1737192287367,32.51022809,238.74,238.65,32.51022809]
[1737192287566,32.51022809,238.74,238.67,32.51022809]
[1737192287881,32.51022809,238.82,238.73,32.51022809]
[1737192288381,32.51022809,238.8,238.71,32.51022809]
[1737192288677,32.51022809,238.78,238.69,32.51022809]
[1737192289852,32.51022809,238.72,238.63,32.51022809]
[1737192290051,32.51022809,238.72,238.65,32.51022809]
[1737192290353,32.51022809,238.76,238.68,20.0]
[1737192291468,32.51022809,238.76,238.7,20.0]
[1737192291671,32.51022809,238.8,238.71,32.51022809]
[1737192291853,32.51022809,238.8,238.73,32.51022809]
[1737192292048,32.51022809,238.8,238.71,32.51022809]
[1737192292264,13.70966527,238.87,238.73,32.51022809]
[1737192292265,32.51022809,238.82,238.73,32.51022809]
[1737192292467,32.51022809,238.8,238.73,32.51022809]
[1737192292647,32.51022809,238.8,238.71,32.51022809]
[1737192293375,32.51022809,238.88,238.78,32.51022809]
[1737192293687,32.51022809,238.9,238.81,32.51022809]
[1737192293983,32.51022809,238.9,238.84,20.0]
[1737192294281,8.7091,239.0,238.85,32.51022809]
[1737192294463,32.51022809,238.95,238.87,32.51022809]
[1737192294662,32.51022809,238.91,238.81,32.51022809]
[1737192294857,32.51022809,238.89,238.79,34.13769975]
[1737192295079,32.51022809,238.93,238.86,20.0]
[1737192295377,32.51022809,238.98,238.89,32.51022809]
[1737192295579,32.51022809,238.96,238.89,20.0]
[1737192295759,32.51022809,238.96,238.86,32.51022809]
[1737192295963,32.51022809,238.96,238.89,20.0]
[1737192296166,32.51022809,238.94,238.86,32.51022809]
[1737192296376,32.51022809,238.92,238.84,32.51022809]
[1737192296678,32.51022809,238.9,238.8,32.51022809]
[1737192296883,32.51022809,238.88,238.8,32.51022809]
[1737192297383,32.51022809,238.88,238.8,5.70596909]
[1737192297585,32.51022809,238.88,238.83,20.0]
[1737192297884,0.78497891,238.98,238.83,20.0]
[1737192298054,23.776884,238.97,238.83,20.0]
[1737192298253,32.51022809,238.91,238.83,20.0]
[1737192298758,32.51022809,238.93,238.87,20.0]
[1737192299082,32.51022809,238.95,238.86,32.51022809]
[1737192299282,32.51022809,238.97,238.88,32.51022809]
[1737192299476,8.7091,239.0,238.84,20.0]
[1737192299477,32.51022809,238.95,238.84,20.0]
[1737192299654,32.51022809,238.95,238.86,32.51022809]
[1737192299854,32.51022809,238.95,238.89,20.0]
[1737192300580,32.51022809,238.99,238.9,32.83088033]
[1737192300768,32.51022809,238.93,238.84,32.51022809]
[1737192300967,32.51022809,238.91,238.82,32.51022809]
[1737192301170,20.0,238.97,238.68,178.43692809]
[1737192301376,23.776884,238.95,238.69,0.32142945]
[1737192301575,0.78505348,238.94,238.72,84.53503471]
[1737192301761,32.51022809,238.84,238.75,32.51022809]
[1737192301962,32.51022809,238.82,238.76,20.0]
[1737192302375,32.24012809,238.82,238.76,20.0]
[1737192302576,32.24012809,238.82,238.73,32.51022809]
[1737192302764,32.51022809,238.78,238.72,82.9]
[1737192302967,32.51022809,238.78,238.75,20.0]
[1737192303171,32.51022809,238.76,238.67,37.43022809]
[1737192303370,32.51022809,238.84,238.76,32.51022809]
[1737192304076,32.51022809,238.89,238.81,20.0]
[1737192304257,32.51022809,238.89,238.8,32.51022809]
[1737192304456,32.51022809,238.87,238.78,32.51022809]
[1737192304687,32.51022809,238.87,238.81,20.0]
[1737192304864,32.51022809,238.95,238.87,20.0]
[1737192305274,32.51022809,238.95,238.86,32.51022809]
[1737192305567,32.51022809,238.97,238.88,32.51022809]
[1737192305765,32.51022809,238.95,238.89,20.0]
[1737192306085,32.51022809,238.91,238.76,82.9]
[1737192306264,32.51022809,238.83,238.76,82.9]
[1737192306587,32.51022809,238.85,238.79,20.0]
[1737192307088,32.51022809,238.81,238.76,82.9]
[1737192307472,32.51022809,238.83,238.76,82.9]
[1737192307874,32.51022809,238.85,238.77,32.51022809]
[1737192308189,32.51022809,238.91,238.84,20.0]
[1737192308392,23.776884,238.97,238.84,20.0]
[1737192308586,32.51022809,238.92,238.83,32.51022809]
[1737192308796,32.51022809,238.98,238.9,32.51022809]
[1737192309087,32.51022809,238.94,238.85,32.51022809]
[1737192309264,32.51022809,238.91,238.84,4.94]
[1737192309465,32.51022809,238.95,238.85,32.51022809]
[1737192309661,32.51022809,238.97,238.89,32.51022809]
[1737192309896,32.51022809,238.99,238.89,32.51022809]
[1737192310092,32.51022809,238.99,238.91,32.51022809]
[1737192310590,2.1601,239.04,238.91,32.51022809]
[1737192310968,32.51022809,239.0,238.91,32.51022809]
[1737192311290,32.51022809,239.02,238.96,20.0]
[1737192311463,32.51022809,239.06,239.0,20.0]
[1737192311666,0.78446113,239.17,239.0,20.0]
[1737192311667,3.09924941,239.03,239.0,0.31990185]
[1737192311874,32.51022809,239.16,239.02,20.0]
[1737192312079,9.30361009,239.18,239.11,20.0]
[1737192312367,32.51022809,239.16,239.11,20.0]
[1737192312711,6.46831967,239.21,239.08,32.51022809]
[1737192312712,6.46831967,239.21,239.14,32.51022809]
[1737192313060,32.51022809,239.22,239.14,32.51022809]
[1737192313271,32.51022809,239.24,239.17,20.0]
[1737192313474,32.51022809,239.28,239.18,32.51022809]
[1737192313660,32.51022809,239.32,239.24,32.51022809]
[1737192313969,6.46831967,239.34,239.15,142.22]
[1737192313970,0.063,239.21,239.18,32.51022809]
[1737192314265,0.063,239.21,239.19,32.8288298]
[1737192314596,0.063,239.21,239.15,37.74876849]
[1737192314963,0.063,239.21,239.18,20.0]
[1737192315186,0.063,239.21,239.17,32.51022809]
[1737192315386,0.063,239.21,239.17,0.31863102]
[1737192315581,0.063,239.21,239.2,20.0]
[1737192315782,32.51022809,239.35,239.22,20.0]
[1737192315969,32.51022809,239.33,239.26,20.0]
[1737192316163,32.51022809,239.33,239.23,32.51022809]
[1737192316698,32.51022809,239.31,239.26,20.0]
[1737192316869,32.51022809,239.31,239.23,32.51022809]
[1737192317193,32.51022809,239.27,239.22,20.0]
[1737192317890,32.51022809,239.27,239.19,37.43022809]
[1737192318102,32.51022809,239.25,239.19,4.92]
[1737192318502,32.51022809,239.29,239.19,37.74886371]
[1737192318682,32.51022809,239.27,239.2,20.0]
[1737192319800,32.51022809,239.31,239.24,20.0]
[1737192320092,32.51022809,239.33,239.25,32.51022809]
[1737192320587,32.51022809,239.33,239.28,20.0]
[1737192320799,32.51022809,239.31,239.24,4.92]
[1737192320970,32.51022809,239.29,239.24,4.92]
[1737192321171,32.51022809,239.29,239.19,32.51022809]
[1737192321474,32.51022809,239.27,239.19,32.51022809]
[1737192322185,32.51022809,239.27,239.22,20.0]
[1737192322577,32.51022809,239.29,239.24,20.0]
[1737192322777,32.51022809,239.31,239.26,20.0]
[1737192323003,0.78345419,239.51,239.3,20.0]
[1737192323298,32.51022809,239.52,239.32,20.0]
[1737192323299,32.51022809,239.37,239.32,20.0]
[1737192323667,32.51022809,239.44,239.36,32.51022809]
[1737192323898,32.51022809,239.42,239.32,42.91337148]
[1737192324083,32.51022809,239.4,239.32,37.43022809]
[1737192324406,32.51022809,239.45,239.4,82.9]
[1737192324698,32.51022809,239.42,239.33,37.55022809]
[1737192324887,32.51022809,239.44,239.35,32.51022809]
[1737192325089,32.51022809,239.46,239.42,20.0]
[1737192325392,32.51022809,239.48,239.42,20.0]
[1737192325572,32.51022809,239.5,239.44,20.0]
[1737192326067,32.51022809,239.5,239.46,20.0]
[1737192326696,32.51022809,239.5,239.41,32.51022809]
[1737192326866,0.84587711,239.58,239.34,82.9]
[1737192326867,32.51022809,239.46,239.39,32.51022809]
[1737192327077,32.51022809,239.46,239.37,32.51022809]
[1737192327281,32.51022809,239.44,239.35,32.51022809]
[1737192327600,32.51022809,239.42,239.35,32.51022809]
[1737192327785,32.51022809,239.42,239.38,20.0]
[1737192327978,32.51022809,239.42,239.34,82.9]
[1737192328184,32.51022809,239.4,239.34,82.9]
[1737192328497,32.51022809,239.4,239.37,20.0]
[1737192328789,32.51022809,239.42,239.37,20.0]
[1737192329991,32.51022809,239.44,239.38,20.0]
[1737192330383,32.51022809,239.46,239.4,20.0]
[1737192330586,32.51022809,239.46,239.39,32.51022809]
[1737192331703,32.51022809,239.46,239.37,52.51022809]
[1737192331896,32.51022809,239.44,239.35,32.51022809]
[1737192332499,32.51022809,239.37,239.27,32.51022809]
[1737192332810,32.51022809,239.3,239.22,32.51022809]
[1737192333688,32.51022809,239.32,239.24,32.51022809]
[1737192334203,32.51022809,239.32,239.27,20.0]
[1737192334590,32.51022809,239.28,239.19,82.9]
[1737192334909,32.51022809,239.27,239.22,20.0]
[1737192335229,32.51022809,239.29,239.26,20.0]
[1737192335414,32.51022809,239.31,239.26,20.0]
[1737192335705,32.51022809,239.29,239.26,20.0]
[1737192335908,32.51022809,239.29,239.24,20.0]
[1737192337798,32.51022809,239.29,239.21,32.51022809]
[1737192337799,32.51022809,239.31,239.26,20.0]
[1737192339004,6.46831967,239.68,239.29,32.51022809]
[1737192339005,32.51022809,239.36,239.29,32.51022809]
[1737192339217,32.51022809,239.4,239.34,20.0]
[1737192339599,32.51022809,239.4,239.21,4.95]
[1737192339802,32.51022809,239.36,239.27,32.51022809]
[1737192340113,32.51022809,239.36,239.29,32.51022809]
[1737192340419,32.51022809,239.34,239.32,20.0]
[1737192340714,32.51022809,239.36,239.31,20.0]
[1737192340884,32.51022809,239.38,239.33,20.0]
[1737192341084,32.51022809,239.42,239.34,32.51022809]
[1737192342099,32.51022809,239.4,239.32,32.51022809]
[1737192343422,32.51022809,239.37,239.29,32.51022809]
[1737192343705,32.51022809,239.35,239.25,32.51022809]
[1737192344115,32.51022809,239.35,239.27,32.51022809]
[1737192345113,32.51022809,239.35,239.3,20.0]
[1737192345494,32.51022809,239.31,239.21,32.54022809]
[1737192345695,32.51022809,239.28,239.21,32.54022809]
[1737192345909,32.51022809,239.32,239.23,32.51022809]
[1737192346292,32.51022809,239.3,239.21,32.54022809]
[1737192346508,32.51022809,239.28,239.21,0.03]
[1737192346713,32.51022809,239.26,239.21,0.03]
[1737192347404,20.12213626,239.24,239.21,0.03]
[1737192347612,20.12213626,239.34,239.22,20.12213626]
[1737192347920,20.12213626,239.33,239.28,20.0]
[1737192348232,0.78342914,239.4,239.21,0.03]
[1737192348723,23.776884,239.39,239.21,0.03]
[1737192348922,0.78359036,239.38,239.21,0.03]
[1737192349224,23.776884,239.31,239.21,0.03]
[1737192349412,20.12213626,239.25,239.21,0.03]
[1737192351721,20.12213626,239.23,239.21,0.03]
[1737192352199,24.56078002,239.22,239.21,0.03]
[1737192352395,20.12213626,239.23,239.21,0.03]
[1737192352810,20.12213626,239.27,239.21,0.03]
[1737192353207,20.12213626,239.25,239.21,0.03]
[1737192354012,20.12213626,239.29,239.21,20.15213626]
[1737192354214,20.12213626,239.33,239.28,20.0]
[1737192355301,32.69052912,239.29,239.21,0.03]
[1737192355631,32.69052912,239.26,239.22,20.0]
[1737192355922,32.69052912,239.26,239.21,0.03]
[1737192356132,32.69052912,239.22,239.21,0.03]
[1737192357528,56.46741312,239.22,239.21,0.03]
[1737192358031,57.25164711,239.22,239.21,0.03]
[1737192359404,60.35090939,239.22,239.21,0.03]
[1737192359605,36.658284,239.21,239.05,32.69052912]
[1737192359805,32.69052912,239.18,239.09,32.69052912]
[1737192360005,32.69052912,239.18,239.12,20.0]
[1737192360532,32.69052912,239.13,239.05,32.69052912]
[1737192360732,32.69052912,239.11,239.03,32.69052912]
[1737192360923,32.69052912,239.13,239.05,32.69052912]
[1737192361126,32.69052912,239.13,239.08,20.0]
[1737192361324,32.69052912,239.15,239.08,20.0]
[1737192361527,4.1779,239.35,239.17,20.0]
[1737192361828,32.69052912,239.33,239.28,20.0]
[1737192362036,8.04685245,239.34,239.28,20.0]
[1737192362202,8.04685245,239.34,239.3,20.0]
[1737192362405,8.04685245,239.34,239.29,32.69052912]
[1737192363110,8.04685245,239.34,239.23,32.69052912]
[1737192363316,32.69052912,239.26,239.17,38.17330576]
[1737192363629,4.96188224,239.33,238.92,32.69052912]
[1737192363630,32.69052912,239.22,239.13,32.69052912]
[1737192364024,32.69052912,239.2,239.11,32.69052912]
[1737192364215,23.776884,239.26,239.11,32.69052912]
[1737192364420,32.69052912,239.19,239.11,32.69052912]
[1737192364730,32.69052912,239.14,239.05,32.69052912]
[1737192365309,32.58023281,239.11,239.02,32.69052912]
[1737192365939,32.69052912,239.13,239.04,32.69052912]
[1737192366442,32.69052912,239.13,239.07,20.0]
[1737192366641,32.69052912,239.17,239.11,20.0]
[1737192366817,32.69052912,239.12,239.01,32.69052912]
[1737192367017,33.47455174,239.16,238.97,115.62052912]
[1737192367018,32.69052912,239.05,238.97,115.62052912]
[1737192367240,32.69052912,239.03,238.97,82.93]
[1737192367626,32.69052912,239.03,239.0,20.0]
[1737192367936,43.776884,239.13,238.97,82.93]
[1737192368137,43.776884,239.13,238.97,0.03]
[1737192368138,32.69052912,239.03,238.97,0.03]
[1737192368312,32.69052912,238.98,238.97,0.03]
[1737192368520,32.69052912,239.02,238.97,0.03]
[1737192368717,0.78452776,239.1,238.97,32.72052912]
[1737192369024,32.69052912,239.06,239.01,20.0]
[1737192369230,32.69052912,239.04,239.01,20.0]
[1737192369542,32.69052912,239.04,238.97,0.03]
[1737192369737,32.69052912,239.02,238.97,0.03]
[1737192370245,32.69052912,238.98,238.97,0.03]
[1737192371246,56.46741312,238.98,238.97,0.03]
[1737192372245,23.776884,238.94,238.8,82.9]
[1737192372548,32.69052912,238.83,238.8,82.9]
[1737192372760,32.69052912,238.81,238.72,0.03]
[1737192373040,32.69052912,238.85,238.8,20.0]
[1737192373343,32.69052912,238.85,238.72,103.25151853]
[1737192373344,32.69052912,238.87,238.79,32.69052912]
[1737192373527,32.69052912,238.91,238.86,20.0]
[1737192373846,32.69052912,238.89,238.86,20.0]
[1737192374140,32.69052912,238.87,238.75,32.69052912]
[1737192374342,32.69052912,238.79,238.72,32.72052912]
[1737192374551,32.69052912,238.79,238.72,0.03]
[1737192374845,32.69052912,238.82,238.73,32.69052912]
[1737192375635,32.69052912,238.82,238.76,20.0]
[1737192376023,32.69052912,238.87,238.81,20.0]
[1737192376235,32.69052912,238.87,238.76,20.0]
[1737192376236,32.69052912,238.91,238.85,20.0]
[1737192376427,32.69052912,238.87,238.76,32.69052912]
[1737192376630,32.69052912,238.84,238.76,32.69052912]
[1737192377233,24.56193517,238.91,238.76,32.69052912]
[1737192377546,32.69052912,238.81,238.79,20.0]
[1737192377923,32.69052912,238.83,238.77,20.0]
[1737192378132,32.69052912,238.81,238.77,20.0]
[1737192379352,32.69052912,238.83,238.75,52.69052912]
[1737192379725,32.69052912,238.85,238.81,20.0]
[1737192379924,32.69052912,238.91,238.87,20.0]
[1737192380643,32.69052912,238.89,238.85,20.0]
[1737192381553,32.69052912,238.92,238.83,52.69052912]
[1737192381936,32.69052912,238.96,238.9,20.0]
[1737192382138,32.69052912,238.99,238.91,32.69052912]
[1737192382329,32.69052912,238.93,238.84,4.92]
[1737192382626,32.69052912,238.91,238.84,4.92]
[1737192383032,32.69052912,238.91,238.86,20.0]
[1737192383733,32.69052912,239.02,238.92,20.0]
[1737192383942,32.69052912,238.98,238.93,20.0]
[1737192384140,32.69052912,238.98,238.88,32.69052912]
[1737192384141,32.69052912,238.96,238.86,32.69052912]
[1737192384448,32.69052912,238.94,238.89,20.0]
[1737192385152,32.69052912,238.9,238.84,4.92]
[1737192385743,32.69052912,238.9,238.85,20.0]
[1737192387050,0.78484603,238.99,238.78,93.39140463]
[1737192387051,32.69052912,238.87,238.78,82.9]
[1737192387254,32.69052912,238.85,238.78,82.9]
[1737192387782,32.69052912,238.83,238.78,82.9]
[1737192388453,32.69052912,238.83,238.81,20.0]
[1737192389150,32.69052912,238.87,238.81,20.0]
[1737192389537,32.69052912,238.89,238.83,20.0]
[1737192389739,32.69052912,238.87,238.83,20.0]
[1737192389944,32.69052912,238.85,238.78,115.59052912]
[1737192390439,32.69052912,238.85,238.81,20.0]
[1737192391458,20.1864525,238.86,238.81,20.0]
[1737192393263,20.1864525,238.92,238.87,20.0]
[1737192393560,20.1864525,238.88,238.8,20.1864525]
[1737192394061,20.1864525,238.88,238.83,20.0]
[1737192394256,20.1864525,238.86,238.78,103.0864525]
[1737192395745,20.1864525,238.86,238.81,20.0]
[1737192395944,20.1864525,238.82,238.76,0.03]
[1737192396157,20.1864525,238.8,238.76,0.03]
[1737192396656,20.1864525,238.78,238.76,0.03]
[1737192397964,20.1864525,238.8,238.76,0.03]
[1737192398168,27.963384,238.86,238.76,0.03]
[1737192398369,20.1864525,238.81,238.76,0.03]
[1737192398968,20.1864525,238.79,238.76,0.03]
[1737192399640,20.1864525,238.77,238.76,0.03]
[1737192399961,20.1864525,238.78,238.76,0.03]
[1737192400343,20.1864525,238.77,238.76,0.03]
[1737192400951,20.1864525,238.78,238.76,0.03]
[1737192401356,20.1864525,238.77,238.76,0.03]
[1737192402165,20.1864525,238.79,238.76,0.03]
[1737192402574,20.1864525,238.78,238.76,0.03]
[1737192402873,20.1864525,238.79,238.76,0.03]
[1737192403079,20.1864525,238.83,238.76,20.2164525]
[1737192403258,20.1864525,238.81,238.76,0.03]
[1737192403573,20.1864525,238.8,238.76,0.03]
[1737192403768,20.1864525,238.79,238.76,0.03]
[1737192403975,20.1864525,238.77,238.76,0.03]
[1737192404370,4.97103985,238.91,238.76,20.2164525]
[1737192404679,20.1864525,238.81,238.76,0.03]
[1737192404862,18.0315525,238.81,238.76,0.03]
[1737192405467,20.1864525,238.79,238.76,0.03]
[1737192405656,20.1864525,238.77,238.76,0.03]
[1737192406070,0.78526568,238.89,238.76,0.03]
[1737192406071,20.1864525,238.79,238.76,0.03]
[1737192406853,20.1864525,238.77,238.76,0.03]
[1737192407474,0.78536848,238.82,238.76,0.03]
[1737192407475,23.776884,238.81,238.76,0.03]
[1737192407768,20.1864525,238.8,238.76,0.03]